Cogmind - Beta 11 X7 @@@ ROGUE MODE // 2021.09.13 @ 02:46:02 // AFD2019/Pay2Buy Player: PhenomPhear Result: Destroyed by 8R-AWN with 8R-AWN's Boregun Performance ------------- Evolutions (1) 500 Regions Visited (5) 1000 Robots Destroyed (78) 390 Value Destroyed (2135) 2135 Prototype IDs (2) 40 Alien Tech Used (0) 0 Bonus (150) 150 TOTAL SCORE: 4215 Bonus ------- High Alert Combat Kills 222 Friendly Fire -72 Cogmind --------- Core Integrity 0/400 Matter 98/300 Energy 100/100 System Corruption 2% Temperature Cool (0) Movement Core (50) Location -9/Exiles Parts ------- > --- POWER (1) -------- (None) > --- PROPULSION (2) --- (None) > --- UTILITY (4) ------ Core Analyzer > --- WEAPON (2) ------- (None) > --- INVENTORY (10) --- Improved Airjet Experimental Sensor Array Improved Shield Generator Flak Cannon Flak Cannon Gauss Cannon Peak State ------------ > --- POWER ------------ Fission Core > --- PROPULSION ------- Wheel Armored Wheel > --- UTILITY ---------- Core Analyzer Hardened Heavy Armor Plating Improved Medium Armor Plating > --- WEAPON ----------- Precision Assault Rifle Mini Grenade Launcher > --- INVENTORY -------- Improved Airjet Experimental Sensor Array Improved Shield Generator EM Pulse Cannon Flak Cannon Flak Cannon Gauss Cannon [Rating: 34] Favorites ----------- Power Reinforced Ion Engine Engine Reinforced Ion Engine Power Core Fission Core Propulsion Armored Wheel Wheel Armored Wheel Utility High-capacity Matter Pod Device High-powered Tractor Beam Storage High-capacity Matter Pod Processor Core Analyzer Protection Reactive Plating Weapon Mini Grenade Launcher Energy Cannon EM Pulse Cannon Ballistic Gun Precision Assault Rifle Ballistic Cannon Flak Cannon Launcher Mini Grenade Launcher Build | -11 -10 -10 -9 -9 -9 ------- Run | Scr Mat Min Mat Min Exi Slots Evolved 2 | . . . 2 . . Power . | . . . . . . Propulsion . | . . . . . . Utility 2 | . . . 2 . . Weapon . | . . . . . . Parts Attached 7 | . . . 2 3 2 Power 1 | . . . . 1 . Engine . | . . . . . . Core 1 | . . . . 1 . Reactor . | . . . . . . Propulsion . | . . . . . . Treads . | . . . . . . Leg . | . . . . . . Wheel . | . . . . . . Hover . | . . . . . . Flight . | . . . . . . Utility 2 | . . . . 2 . Device . | . . . . . . Storage . | . . . . . . Processor . | . . . . . . Hackware . | . . . . . . Protection 2 | . . . . 2 . Artifact . | . . . . . . Weapon 4 | . . . 2 . 2 Energy Gun . | . . . . . . Energy Cannon 1 | . . . . . 1 Ballistic Gun 1 | . . . . . 1 Ballistic Cannon 1 | . . . 1 . . Launcher 1 | . . . 1 . . Special Weapon . | . . . . . . Impact Weapon . | . . . . . . Slashing Weapon . | . . . . . . Piercing Weapon . | . . . . . . Special Melee Weapon . | . . . . . . Unidentified Prototypes . | . . . . . . Parts Lost 17 | . 2 1 6 . 8 Power 2 | . 1 . . . 1 Propulsion 4 | . . 1 1 . 2 Utility 4 | . . . 2 . 2 Weapon 7 | . 1 . 3 . 3 Highest Loss Streak 8 | . 1 1 3 . 8 Average Slot Usage (%) 84 | . 85 95 85 88 58 Engine 9 | . 11 14 11 6 . Core 1 | . . . . 4 6 Wheel 23 | . 28 24 20 22 13 Device 4 | . 4 14 8 . . Storage 9 | . 14 14 11 . . Processor 4 | . . . 3 11 11 Protection 8 | . . . 9 22 12 Energy Cannon 2 | . . . . 11 5 Launcher 19 | . 26 28 18 11 4 Naked Turns 5 | . 5 . . . . Heaviest Build 44 | . 20 20 37 44 44 Greatest Support 24 | 3 24 24 24 22 22 Greatest Overweight (x) 1 | . . 1 1 1 1 Average Overweight (x) . | . . . 1 1 1 Largest Inventory Capacity 10 | 10 10 10 10 10 10 Average Capacity 10 | 10 10 10 10 10 10 Most Carried 10 | . . . 3 10 10 Average Carried 3 | . . . 2 9 7 Final Capacity 10 | 10 10 10 10 10 10 Final Carried 10 | . . . 2 10 6 Class Distribution -------------------- 100% | Mutant Dominant Class ---------------- Mutant | -10/Materials Mutant | -10/Mines Mutant | -9/Materials Mutant | -9/Mines Mutant | -9/Exiles Resources | -11 -10 -10 -9 -9 -9 ----------- Run | Scr Mat Min Mat Min Exi Matter Collected 1700 | . 600 169 831 100 . Remotely 964 | . 115 169 680 . . Salvage Created 2175 | . 716 169 1066 214 10 Parts . | . . . . . . Haulers Intercepted 3 | . 2 . 1 . . Recyclers Shooed . | . . . . . . Parts Field Recycled . | . . . . . . Retrieved Matter . | . . . . . . Parts Self-Destructed . | . . . . . . Prevented . | . . . . . . Kills | -11 -10 -10 -9 -9 -9 ------- Run | Scr Mat Min Mat Min Exi Combat Hostiles Destroyed 49 | . 10 2 21 9 7 Cannons 1 | . . . 1 . . AOE 48 | . 10 2 20 9 7 Classes Destroyed 13 | . 9 . 3 . 1 Worker 12 | . 4 2 5 1 . Builder 3 | . . . 2 1 . Tunneler 6 | . 2 1 1 2 . Hauler 3 | . 2 . 1 . . Recycler 4 | . 3 . . 1 . Mechanic 1 | . 1 . . . . Operator 2 | . 1 . 1 . . Watcher 5 | . 3 . 2 . . Swarmer 10 | . 3 . . 7 . Grunt 26 | . 7 2 15 2 . Duelist 1 | . . . 1 . . Sentry 5 | . . . 5 . . Assembled 7 | . . . . . 7 Best Kill Streak 7 | . 4 3 6 6 7 Combat Bots Only 7 | . 3 2 5 6 7 Max Kills in Single Turn 5 | . 2 2 2 4 5 Gunslinging . | . . . . . . Exploded 5 | . 2 1 1 4 5 Melee . | . . . . . . Uniques/NPCs Destroyed . | . . . . . . Combat | -11 -10 -10 -9 -9 -9 -------- Run | Scr Mat Min Mat Min Exi Damage Taken 2808 | . 385 113 807 138 1365 Core 595 | . 136 54 142 . 263 Absorbed by Shields . | . . . . . . Core Remaining (%) 62 | 100 . 24 . . . Volleys Fired 262 | . 74 10 114 7 57 Largest 1 | . 1 1 1 1 1 Hottest 63 | . 33 33 44 30 63 Shots Fired 262 | . 74 10 114 7 57 Gun 48 | . . . . . 48 Cannon 9 | . . . 3 . 6 Launcher 205 | . 74 10 111 7 3 Special . | . . . . . . Kinetic 51 | . . . 3 . 48 Thermal . | . . . . . . Explosive 83 | . 32 1 40 7 3 Electromagnetic 128 | . 42 9 71 . 6 Robot Hit Streak 23 | . 5 . 7 . 23 Robot Miss Streak 4 | . 4 . 2 1 2 Penetration Max . | . . . . . . Secondary Targets . | . . . . . . Shots Hit Robots 77 | . 12 . 18 . 47 Core Hits 139 | . 35 7 52 24 21 Critical Kills . | . . . . . . Critical Parts Destroyed . | . . . . . . Critical Strikes . | . . . . . . Melee Attacks . | . . . . . . Impact . | . . . . . . Slashing . | . . . . . . Piercing . | . . . . . . Sneak Attacks . | . . . . . . Combat Hostiles . | . . . . . . Follow-up Attacks . | . . . . . . Damage Inflicted 6578 | . 1685 339 2440 740 1374 Guns 825 | . . . . . 825 Cannons 49 | . . . 43 . 6 Explosions 5704 | . 1685 339 2397 740 543 Melee . | . . . . . . Ramming . | . . . . . . Kinetic 868 | . . . 43 . 825 Thermal . | . . . . . . Explosive 3515 | . 1085 46 1101 740 543 Electromagnetic 2195 | . 600 293 1296 . 6 Impact . | . . . . . . Slashing . | . . . . . . Piercing . | . . . . . . Highest Corruption 2 | . . . 2 2 2 Average Corruption 2 | . . . 2 2 2 Corruption Purged . | . . . . . . Effects 19 | . . . 7 10 2 Message Errors 8 | . . . 1 5 2 Heat Flow Errors 3 | . . . 2 1 . Energy Discharges 5 | . . . 2 3 . Data Loss (minor) 3 | . . . 2 1 . Overload Shots . | . . . . . . Overflow Damage 247 | . 191 . 52 . 4 Projectiles . | . . . . . . Explosions 247 | . 191 . 52 . 4 Melee . | . . . . . . Knockbacks 4 | . . . 4 . . Impact . | . . . . . . Kinetic 4 | . . . 4 . . Secondary . | . . . . . . Self-Inflicted Damage 371 | . 140 41 103 87 . Shots 22 | . 8 2 9 3 . Rammed . | . . . . . . Targets Rammed . | . . . . . . Kicked . | . . . . . . Crushed . | . . . . . . Highest Temperature 402 | . 14 21 284 199 402 Average Temperature 86 | . 7 13 29 96 244 Received Heat Transfer 513 | . 120 39 342 12 . Effects 5 | . . . 1 . 4 Shutdowns 2 | . . . . . 2 Energy Bleed 2 | . . . . . 2 Interference 1 | . . . 1 . . Siege Activations . | . . . . . . Robots Corrupted . | . . . . . . Combat Hostiles . | . . . . . . Parts Fried . | . . . . . . Impact Corruptions . | . . . . . . Robots Melted . | . . . . . . Combat Hostiles . | . . . . . . Parts Melted . | . . . . . . Heat Transferred . | . . . . . . Parts Sabotaged . | . . . . . . Parts Stolen . | . . . . . . Parts Stripped . | . . . . . . Power Chain Reactions 1 | . 1 . . . . Missiles Intercepted . | . . . . . . Alert | -11 -10 -10 -9 -9 -9 ------- Run | Scr Mat Min Mat Min Exi Peak Influence 797 | . 495 203 797 581 . Initial 301 | . . 148 78 301 . Average 401 | . 328 169 496 439 . Maximum Alert Level 3 | . 2 1 3 2 . Low Security (%) 14 | 100 17 83 15 . . Level 1 40 | . 49 16 20 55 . Level 2 35 | . 33 . 35 44 . Level 3 9 | . . . 29 . . Level 4 . | . . . . . . Level 5 . | . . . . . . High Security . | . . . . . . Max Security . | . . . . . . Squads Dispatched 10 | . 2 . 7 1 . Investigation 5 | . 2 . 2 1 . Extermination . | . . . . . . Reinforcement 5 | . . . 5 . . Assault . | . . . . . . Garrison . | . . . . . . Intercept . | . . . . . . Construction Impeded 2 | . . . 2 . . Haulers Reinforced . | . . . . . . Active Scanning Responses . | . . . . . . Cargo Convoy Interrupts . | . . . . . . Stealth | -11 -10 -10 -9 -9 -9 --------- Run | Scr Mat Min Mat Min Exi Distress Signals 4 | . 1 . 3 . . Communications Jammed . | . . . . . . Distress Signals . | . . . . . . Times Spotted 70 | . 18 2 33 8 9 Peak Tracking Total 9 | . 4 2 5 5 9 Tactical Retreats 1 | . . . . 1 . Traps | -11 -10 -10 -9 -9 -9 ------- Run | Scr Mat Min Mat Min Exi Traps Triggered 4 | . 2 . 2 . . Indirectly 1 | . . . 1 . . Trap Hack Attempts . | . . . . . . Triggered . | . . . . . . Disarmed . | . . . . . . Reprogrammed . | . . . . . . Reused 1 | . . . . . 1 Traps Extracted . | . . . . . . Installed 3 | . . . . . 3 Triggered . | . . . . . . Machines | -11 -10 -10 -9 -9 -9 ---------- Run | Scr Mat Min Mat Min Exi Machines Disabled 64 | . 34 . 27 1 2 Max in Single Turn 3 | . 3 . 2 1 1 Machines Sabotaged . | . . . . . . Garrisons Compromised . | . . . . . . Overloaded Fab Kills . | . . . . . . Fab Network Shutdowns . | . . . . . . Hacking | -11 -10 -10 -9 -9 -9 --------- Run | Scr Mat Min Mat Min Exi Machines Accessed 4 | . . . 2 2 . Terminals 2 | . . . 2 . . Fabricators . | . . . . . . Repair Stations . | . . . . . . Recycling Units . | . . . . . . Scanalyzers . | . . . . . . Garrison Access . | . . . . . . Total Hacks 7 | . . . 5 2 . Successful 3 | . . . 1 2 . Failed 4 | . . . 4 . . Catastrophic 1 | . . . 1 . . Database Lockouts . | . . . . . . Manual 3 | . . . 3 . . Terminals 5 | . . . 5 . . Fabricators . | . . . . . . Repair Stations . | . . . . . . Recycling Units . | . . . . . . Scanalyzers . | . . . . . . Garrison Access . | . . . . . . Terminal Hacks 3 | . . . 1 2 . Open Door 2 | . . . . 2 . Branch Access Points 1 | . . . 1 . . Fabricator Hacks . | . . . . . . Repair Station Hacks . | . . . . . . Recycling Unit Hacks . | . . . . . . Scanalyzer . | . . . . . . Garrison Access Hacks . | . . . . . . Unauthorized Hacks . | . . . . . . Terminals . | . . . . . . Fabricators . | . . . . . . Repair Stations . | . . . . . . Recycling Units . | . . . . . . Scanalyzers . | . . . . . . Garrison Access . | . . . . . . Data Cores Recovered 1 | . 1 . . . . Used . | . . . . . . Hacking Detections 2 | . . . 2 . . Full Trace Events 1 | . . . 1 . . Feedback Events . | . . . . . . Feedback Blocked . | . . . . . . Robot Schematics Acquired . | . . . . . . Robots Built . | . . . . . . Matter . | . . . . . . Time . | . . . . . . Total Robot Build Rating . | . . . . . . Part Schematics Acquired . | . . . . . . Parts Built . | . . . . . . Matter . | . . . . . . Time . | . . . . . . Total Part Build Rating . | . . . . . . Parts Repaired . | . . . . . . Time . | . . . . . . Parts Recycled . | . . . . . . Recycled Matter . | . . . . . . Retrieved Matter . | . . . . . . Retrieved Components . | . . . . . . Parts Scanalyzed . | . . . . . . Part Schematics Acquired . | . . . . . . Parts Damaged . | . . . . . . Bothacking | -11 -10 -10 -9 -9 -9 ------------ Run | Scr Mat Min Mat Min Exi Used RIF Installer . | . . . . . . Robots Hacked . | . . . . . . Non-combat . | . . . . . . Combat . | . . . . . . Robot Hacks Applied . | . . . . . . Relay Couplers Released . | . . . . . . Robots Rewired . | . . . . . . Allies Hacked . | . . . . . . Hacks Repelled . | . . . . . . Allies | -11 -10 -10 -9 -9 -9 -------- Run | Scr Mat Min Mat Min Exi Total Allies 1 | . . . . 1 . Largest Group 1 | . . . . 1 . Highest-Rated Group 31 | . . . . 31 . Highest-Rated Ally 31 | . . . . 31 . Total Orders . | . . . . . . Ally Attacks . | . . . . . . Total Damage . | . . . . . . Kills . | . . . . . . Allies Corrupted . | . . . . . . Allies Melted . | . . . . . . Intel | -11 -10 -10 -9 -9 -9 ------- Run | Scr Mat Min Mat Min Exi Robot Analysis Total . | . . . . . . Derelict Logs Recovered . | . . . . . . Drone Launches . | . . . . . . Drone Recoveries . | . . . . . . Exploration | -11 -10 -10 -9 -9 -9 ------------- Run | Scr Mat Min Mat Min Exi Turns Passed 3255 | 11 1329 73 978 663 201 Spaces Moved 2710 | 22 1239 58 692 633 66 Core 51 | 22 8 . . . 21 Treads . | . . . . . . Legs . | . . . . . . Wheels 2659 | . 1231 58 692 633 45 Hover . | . . . . . . Flight . | . . . . . . Fastest Speed 50 | 50 50 90 105 100 100 Average Speed 96 | 50 89 92 105 100 100 Slowest Speed 105 | 50 90 105 105 100 100 Overloaded Moves . | . . . . . . Propulsion Burnouts . | . . . . . . Robots Hopped . | . . . . . . Cave-ins Triggered . | . . . . . . Exploration Rate (%) 49 | 3 98 18 66 97 12 Regions Visited 5 Branch Regions 3 Pre-discovered Areas . | . . . . . . Known Exits Taken 1 | . . . 1 . . Unknown Exits Taken 4 | 1 1 1 . 1 . Scrap Searched . | . . . . . . Spaces Dug 139 | . 24 16 56 43 . Terrain Destroyed 845 | . 370 16 368 75 16 Melee . | . . . . . . Projectile . | . . . . . . AOE 845 | . 370 16 368 75 16 Terrain Rammed . | . . . . . . Walls Destroyed . | . . . . . . Machines Disabled . | . . . . . . Actions | -11 -10 -10 -9 -9 -9 --------- Run | Scr Mat Min Mat Min Exi Total 3100 | 21 1381 67 828 658 145 Wait 107 | . 69 . 21 3 14 Move 2705 | 21 1238 57 691 632 66 Hop . | . . . . . . Pick Up 6 | . . . . 6 . Fast Attach 1 | . . . . 1 . Attach 3 | . . . 1 1 1 Detach 1 | . . . . 1 . Swap 3 | . . . 1 1 1 Drop 9 | . . . . 6 3 Fire 262 | . 74 10 114 7 57 Melee . | . . . . . . Ram . | . . . . . . Kick . | . . . . . . Crush . | . . . . . . Escape Stasis . | . . . . . . Rewire . | . . . . . . Trap 3 | . . . . . 3 Miscellaneous . | . . . . . . Route ------- -11/Scrapyard -10/Materials (discovered 4 exits: *Mat x3 / [*Min]) -10/Mines -9/Materials (discovered 2 exits: *Mat / *Min) -9/Mines (discovered 3 exits: *Mat x2 / [*Exi]) -9/Exiles (discovered 1 exit: [*Min]) History --------- Turn | Location | Event 4 | -11/Scrapyard | Discovered new exit (range 16) 12 | -11/Scrapyard | Entered Materials 305 | -10/Materials | Build established: Mutant 368 | -10/Materials | Discovered new exit (range 9) 530 | -10/Materials | Discovered new exit (range 16) 599 | -10/Materials | Discovered new exit (range 12) 930 | -10/Materials | Discovered new exit (range 16) 1292 | -10/Materials | Core integrity fell below 50% 1341 | -10/Materials | Entered Mines 1402 | -10/Mines | Discovered new exit (range 11) 1414 | -10/Mines | Entered Materials 1414 | -9/Materials | Evolved 2 slots: Utility x2 2035 | -9/Materials | Discovered new exit (range 16) 2055 | -9/Materials | Identified exit to Materials 2341 | -9/Materials | Lost 3 parts (1n1u1w) 2378 | -9/Materials | Identified exit to Mines 2392 | -9/Materials | Entered Mines 2526 | -9/Mines | Met a Derelict shopkeep closing up shop 2557 | -9/Mines | Discovered exit to Materials (range 10) 2708 | -9/Mines | Received a Mining Laser from a helpful Derelict 2742 | -9/Mines | Discovered exit to Materials (range 11) 2772 | -9/Mines | Found a hidden stash of uninstalled traps 2871 | -9/Mines | Found a damaged Exp. Sensor Array with a note attached 2891 | -9/Mines | Found Prototype Device 2955 | -9/Mines | A weapon hastily lodged in a ceiling crevice suddenly fell to the ground 2981 | -9/Mines | Met a Derelict who couldn't figure out how to use a Trap Extractor 3050 | -9/Mines | Deemed a non-threat by the Exiles lab entrance 3050 | -9/Mines | Discovered new exit (range 5) 3055 | -9/Mines | Entered Exiles 3080 | -9/Exiles | Met 8R-AWN 3100 | -9/Exiles | Attacked by the Exiles 3136 | -9/Exiles | Destroyed 7 combat bots 3160 | -9/Exiles | Core integrity fell below 50% 3215 | -9/Exiles | Core integrity fell below 20% 3230 | -9/Exiles | Discovered new exit (range 14) 3256 | -9/Exiles | Destroyed by 8R-AWN with 8R-AWN's Boregun Last Messages --------------- 03218_ Prc. Assault Rifle destroyed. 03218_ Penetrated by HV Slug. 03225_ JZ6ZLNP# HPAFKAAOZKXS JZDH03/ 03225_ HV Slug penetrates Machine. 03225_ HV Slug penetrates Wall. 03230_ EXIT=FOUND 03241_ HV Slug penetrates Wall. 03241_ Penetrated by HV Slug. 03241_ HV Slug penetrates Wall. 03247_ Penetrated by HV Slug. 03247_ Critical hit (Destroy). 03247_ EM Pulse Cannon destroyed. 03247_ HV Slug penetrates Wall. 03247_ Penetrated by HV Slug. 03247_ HV Slug penetrates Wall. 03252_ Penetrated by HV Slug. 03252_ HV Slug penetrates Wall. 03252_ Penetrated by HV Slug. 03252_ HV Slug penetrates Wall. 03256_ Penetrated by HV Slug. Map ----- +----------------------------------------------------+ | ??????????????????????????????????????????????? | | ??????????????????????????????????????????????? | | ??????????????????????????????????????????????? | | ??????????????????????????????????????????????? | | ??????????????????????????????????????????????? | | ??????????????????????????????????????????????? | | ??????????????????????????????????????????????? | | ??????????????????????????????????????????????? | | ??????????????????????????????????????????????? | | ??????????????????????????????????????????????? | | ??????????????????????????????????????????????? | | ??????????????????????????????????????????????? | | ??????????????????????????????????????????????? | | ??????????????????????????????????????????????? | | ??????????????????????????????????????????????? | | ??????????????????????????????????????????????? | | ??????????????????????????????????????????????? | | ??????????????????????????????????????????????? | | ???????????????????????????###????????????????? | | ?????????????????????????## ##???????????????? | | ????????????????????????## ;????????????????? | | ????????????????????????# < #????????????????? | | ????????????????????????# ##???????????????? | | ????????????????????????# ;????????????????? | | ???????????????????????## #?????????????????? | | ??????????????????????## @ ##????????????????? | | ??????????????????????# #????????????????? | | ??#####???????????????# #????????????????? | | ?## #??????????????## #????????????????? | | ## #?????????????## # #????????????????? | | ##????????????# ###????????????????? | | ###????????###g ##??????????????????? | | ########## #???????????????????? | | % # "## ##???????????????????? | | ##???????????????????? | | ## #???????????????????? | | # ##??????????????????? | | # #"""" "#"# ###????????????????? | | "#??####### ##"" ###??????????????? | | #?????????## # ##""## ##?????????????? | | ???????????####?## "## #?????????????? | | ?????????????????### ### #?????????????? | | ????????????????????# ### #?????????????? | | ?????????????????????## #" ##????????????? | | ???????????????????????? #### ###??????????? | | ????????????????????????????# ##?????????? | | ????????????????????????????## ###???????? | | ?????????????????????????????### #???????? | | ???????????????????????????????# ##???????? | | ???????????????????????????????## ##????????? | +----------------------------------------------------+ Best States ------------- Heat Dissipation 28 Energy Generation 18 Energy Capacity 310 Matter Stores 500 Matter Capacity 500 Sight Range 16 Terrain Scan Density 10 Armor Coverage 825 Resistance: KI 20 Evasion (%) 50 Core Analysis 6 Item Schematics ----------------- None Robot Schematics ------------------ None Fabricated ------------ Nothing Alien Tech Used ----------------- None Achievements -------------- None Challenges ------------ None Cogshop Purchases (36) ------------------------ EMP Blaster (1049) Imp. Ion Engine (699) Arm. Wheel (769) Arm. Wheel (769) Mni. Grenade Launcher (1049) Hcp. Matter Pod (599) Rnf. Ion Engine (788) Hpw. Tractor Beam (570) EMP Blaster (926) Arm. Wheel (685) Reactive Plating (723) Flak Cannon (683) Flak Cannon (683) Shock Bomb Launcher (974) Mni. Grenade Launcher (852) Imp. Signal Interpreter (531) Core Analyzer (Loot Box) EM Pulse Cannon (Loot Box) Fission Core (Loot Box) Wheel (Loot Box) Med. Laser (Loot Box) Utility Shielding (Loot Box) Remote Datajack (Loot Box) Imp. Shield Generator (Loot Box) Datajack (Loot Box) Imp. Airjet (Loot Box) Hrd. Heavy Armor Plating (Loot Box) Imp. Hover Unit (Loot Box) Gauss Cannon (Loot Box) Microactuators (Loot Box) Imp. Carbon-fiber Leg (Loot Box) Imp. Medium Armor Plating (Loot Box) Prc. Assault Rifle (Loot Box) Insulated Plating (Loot Box) Lgt. Deuterium Engine (Loot Box) ECM Suite (Loot Box) Game ------ Seed SurgeRocketPlating Manual? 0 Play Time 00:41:49 Cumulative 1102.7 hours Start 2021.09.05 @ 00:00:26 End 2021.09.13 @ 02:46:02 Sessions 5 Manual Loads 0 Difficulty Rogue Special Mode AFD2019/Pay2Buy Game No. 702 Rogue 697 Adventurer 3 Explorer 2 Win Type - Total 18 Types 10/1/4/3/0/0/0/0/0 Lore% 89 Gallery% 91 Achievement% 81 Wizard Run 0 Options --------- ASCII 0 Keyboard 0 Movement Mouse Keybinds 0 Fullscreen 1 Font 24/Crisp Map View 76x50 Tactical HUD 1 Map Filters NONE Filters NONE Steam 1 RUN: 8562eace-e739-43e3-9409-f4b3577310c3